[Event "Titled Tuesday Blitz November 22 Early 2022"]
[White "Goltseva, Ekaterina"]
[Black "Osinovsky, Stepan"]
[WhiteFideId "24173770"]
[BlackFideId "4157354"]
[WhiteElo "2200"]
[BlackElo "2222"]
[Result "1-0"]
[Round "11"]
[TimeControl "180+1"]
[Date "2022.11.23"]
[WhiteClock "0:00:02"]
[BlackClock "0:00:01"]

1. Nf3 {[%clk 0:01:26]}  Nf6 {[%clk 0:02:47]} 2. c4 {[%clk 0:01:24]}  g6 {[%clk 0:02:47]} 3. Nc3 {[%clk 0:01:23]}  Bg7 {[%clk 0:02:48]} 4. e4 {[%clk 0:01:23]}  O-O {[%clk 0:02:49]} 5. d4 {[%clk 0:01:23]}  d6 {[%clk 0:02:50]} 6. Be2 {[%clk 0:01:24]}  Nbd7 {[%clk 0:02:51]} 7. O-O {[%clk 0:01:24]}  e5 {[%clk 0:02:51]} 8. Be3 {[%clk 0:01:24]}  Re8 {[%clk 0:02:50]} 9. Qc2 {[%clk 0:01:21]}  Ng4 {[%clk 0:02:43]} 10. Bg5 {[%clk 0:01:16]}  f6 {[%clk 0:02:42]} 11. Bh4 {[%clk 0:01:13]}  g5 {[%clk 0:02:13]} 12. Bg3 {[%clk 0:01:10]}  h5 {[%clk 0:02:14]} 13. h4 {[%clk 0:01:05]}  Nf8 {[%clk 0:02:01]} 14. dxe5 {[%clk 0:00:54]}  dxe5 {[%clk 0:01:54]} 15. Rad1 {[%clk 0:00:48]}  Bd7 {[%clk 0:01:54]} 16. Nd5 {[%clk 0:00:40]}  c6 {[%clk 0:01:46]} 17. Nb4 {[%clk 0:00:32]}  Qe7 {[%clk 0:01:44]} 18. c5 {[%clk 0:00:25]}  Ne6 {[%clk 0:01:29]} 19. Bc4 {[%clk 0:00:25]}  Kh8 {[%clk 0:01:22]} 20. Bxe6 {[%clk 0:00:22]}  Bxe6 {[%clk 0:01:19]} 21. hxg5 {[%clk 0:00:12]}  fxg5 {[%clk 0:01:19]} 22. Nd3 {[%clk 0:00:10]}  Bg8 {[%clk 0:01:06]} 23. Qc3 {[%clk 0:00:10]}  h4 {[%clk 0:00:56]} 24. Bh2 {[%clk 0:00:10]}  Bh7 {[%clk 0:00:48]} 25. Rfe1 {[%clk 0:00:10]}  Rad8 {[%clk 0:00:48]} 26. b4 {[%clk 0:00:07]}  Rd7 {[%clk 0:00:40]} 27. Qc1 {[%clk 0:00:07]}  Bf6 {[%clk 0:00:33]} 28. Nb2 {[%clk 0:00:07]}  Rxd1 {[%clk 0:00:30]} 29. Qxd1 {[%clk 0:00:06]}  Qe6 {[%clk 0:00:20]} 30. Qe2 {[%clk 0:00:05]}  Qxa2 {[%clk 0:00:19]} 31. Nxg5 {[%clk 0:00:03]}  Nxh2 {[%clk 0:00:17]} 32. Nxh7 {[%clk 0:00:03]}  Kxh7 {[%clk 0:00:05]} 33. Qh5+ {[%clk 0:00:04]}  Kg7 {[%clk 0:00:06]} 34. Qxe8 {[%clk 0:00:04]}  Qxb2 {[%clk 0:00:03]} 35. Kxh2 {[%clk 0:00:03]}  Qxf2 {[%clk 0:00:01]} 36. Qd7+ {[%clk 0:00:03]}  Kh6 {[%clk 0:00:01]} 37. Qd1 {[%clk 0:00:02]} 1-0


[Site "https://www.chess.com"]

[Event "Titled Tuesday Blitz November 22 Early 2022"]
[White "Gonzalez, Francisco Silva"]
[Black "Ovchinnikov, Vsevolod"]
[WhiteFideId "1512285"]
[BlackFideId "24176842"]
[WhiteElo "2159"]
[BlackElo "2376"]
[Result "0-1"]
[Round "11"]
[TimeControl "180+1"]
[Date "2022.11.23"]
[WhiteClock "0:00:25"]
[BlackClock "0:01:54"]

1. d4 {[%clk 0:00:54]}  Nf6 {[%clk 0:02:56]} 2. c4 {[%clk 0:00:54]}  g6 {[%clk 0:02:56]} 3. Nc3 {[%clk 0:00:55]}  d5 {[%clk 0:02:57]} 4. Bf4 {[%clk 0:00:54]}  Bg7 {[%clk 0:02:57]} 5. Nf3 {[%clk 0:00:54]}  O-O {[%clk 0:02:57]} 6. e3 {[%clk 0:00:54]}  c5 {[%clk 0:02:53]} 7. dxc5 {[%clk 0:00:54]}  Ne4 {[%clk 0:02:52]} 8. Rc1 {[%clk 0:00:54]}  Nxc3 {[%clk 0:02:49]} 9. bxc3 {[%clk 0:00:54]}  dxc4 {[%clk 0:02:48]} 10. Qxd8 {[%clk 0:00:53]}  Rxd8 {[%clk 0:02:49]} 11. Bxc4 {[%clk 0:00:53]}  Nd7 {[%clk 0:02:50]} 12. Ng5 {[%clk 0:00:52]}  Rf8 {[%clk 0:02:50]} 13. Ne4 {[%clk 0:00:50]}  h6 {[%clk 0:02:44]} 14. Ke2 {[%clk 0:00:47]}  Kh7 {[%clk 0:02:44]} 15. Bd5 {[%clk 0:00:40]}  e6 {[%clk 0:02:18]} 16. Bb3 {[%clk 0:00:36]}  e5 {[%clk 0:02:15]} 17. Bg3 {[%clk 0:00:35]}  f5 {[%clk 0:02:16]} 18. c6 {[%clk 0:00:35]}  bxc6 {[%clk 0:02:15]} 19. Nd6 {[%clk 0:00:35]}  Ba6+ {[%clk 0:02:13]} 20. Kf3 {[%clk 0:00:33]}  e4+ {[%clk 0:02:05]} 21. Nxe4 {[%clk 0:00:30]}  fxe4+ {[%clk 0:02:05]} 22. Kg4 {[%clk 0:00:24]}  Nf6+ {[%clk 0:01:54]} 23. Kh4 {[%clk 0:00:25]}  g5+ {[%clk 0:01:54]} 0-1


[Site "https://www.chess.com"]

[Event "Titled Tuesday Blitz November 22 Early 2022"]
[White "Gurevich, Dmitry"]
[Black "Ljukin, Sergei"]
[WhiteFideId "2000407"]
[BlackFideId "14102200"]
[WhiteElo "2506"]
[BlackElo "2312"]
[Result "1-0"]
[Round "11"]
[TimeControl "180+1"]
[Date "2022.11.23"]
[WhiteClock "0:00:05"]
[BlackClock "0:00:07"]

1. d4 {[%clk 0:03:00]}  d5 {[%clk 0:02:54]} 2. c4 {[%clk 0:03:00]}  c6 {[%clk 0:02:54]} 3. e3 {[%clk 0:03:00]}  Nf6 {[%clk 0:02:54]} 4. Nc3 {[%clk 0:03:00]}  e6 {[%clk 0:02:55]} 5. Nf3 {[%clk 0:03:00]}  Nbd7 {[%clk 0:02:55]} 6. Qc2 {[%clk 0:02:59]}  Bd6 {[%clk 0:02:54]} 7. b3 {[%clk 0:03:00]}  O-O {[%clk 0:02:51]} 8. Be2 {[%clk 0:03:00]}  e5 {[%clk 0:02:51]} 9. cxd5 {[%clk 0:02:59]}  cxd5 {[%clk 0:02:51]} 10. Nb5 {[%clk 0:02:59]}  Bb8 {[%clk 0:02:47]} 11. Ba3 {[%clk 0:02:53]}  Re8 {[%clk 0:02:44]} 12. Rc1 {[%clk 0:02:50]}  e4 {[%clk 0:02:35]} 13. Nd2 {[%clk 0:02:39]}  Nb6 {[%clk 0:02:12]} 14. Nc7 {[%clk 0:02:33]}  Bxc7 {[%clk 0:02:11]} 15. Qxc7 {[%clk 0:02:32]}  Qxc7 {[%clk 0:01:24]} 16. Rxc7 {[%clk 0:02:31]}  Bd7 {[%clk 0:01:24]} 17. O-O {[%clk 0:02:04]}  Rec8 {[%clk 0:01:20]} 18. Rfc1 {[%clk 0:01:56]}  Ne8 {[%clk 0:01:16]} 19. Rxc8 {[%clk 0:01:52]}  Rxc8 {[%clk 0:01:16]} 20. Rc5 {[%clk 0:01:45]}  Nc7 {[%clk 0:00:45]} 21. f3 {[%clk 0:01:39]}  f5 {[%clk 0:00:40]} 22. Kf2 {[%clk 0:01:33]}  Ne6 {[%clk 0:00:37]} 23. Rxc8+ {[%clk 0:01:30]}  Nxc8 {[%clk 0:00:31]} 24. Nb1 {[%clk 0:01:19]}  Kf7 {[%clk 0:00:20]} 25. fxe4 {[%clk 0:01:12]}  fxe4 {[%clk 0:00:19]} 26. Nc3 {[%clk 0:00:59]}  Bc6 {[%clk 0:00:19]} 27. h4 {[%clk 0:00:47]}  Ne7 {[%clk 0:00:13]} 28. g4 {[%clk 0:00:47]}  Nc8 {[%clk 0:00:09]} 29. Kg3 {[%clk 0:00:44]}  h6 {[%clk 0:00:07]} 30. Bb4 {[%clk 0:00:30]}  Ne7 {[%clk 0:00:04]} 31. a4 {[%clk 0:00:27]}  Nc8 {[%clk 0:00:03]} 32. Ba3 {[%clk 0:00:26]}  Ne7 {[%clk 0:00:03]} 33. Bxe7 {[%clk 0:00:26]}  Kxe7 {[%clk 0:00:02]} 34. b4 {[%clk 0:00:26]}  Kd6 {[%clk 0:00:03]} 35. b5 {[%clk 0:00:27]}  Bd7 {[%clk 0:00:03]} 36. Bd1 {[%clk 0:00:25]}  g5 {[%clk 0:00:02]} 37. hxg5 {[%clk 0:00:23]}  hxg5 {[%clk 0:00:01]} 38. Bb3 {[%clk 0:00:23]}  Nc7 {[%clk 0:00:02]} 39. Kh3 {[%clk 0:00:21]}  b6 {[%clk 0:00:02]} 40. Kg3 {[%clk 0:00:20]}  Be6 {[%clk 0:00:03]} 41. Na2 {[%clk 0:00:20]}  Ne8 {[%clk 0:00:03]} 42. Nb4 {[%clk 0:00:20]}  Bd7 {[%clk 0:00:02]} 43. Ba2 {[%clk 0:00:19]}  Nc7 {[%clk 0:00:03]} 44. Bb3 {[%clk 0:00:18]}  Ne8 {[%clk 0:00:03]} 45. Na2 {[%clk 0:00:18]}  Nf6 {[%clk 0:00:03]} 46. Nc3 {[%clk 0:00:18]}  Bxg4 {[%clk 0:00:03]} 47. Nxd5 {[%clk 0:00:14]}  Nxd5 {[%clk 0:00:03]} 48. Bxd5 {[%clk 0:00:13]}  Bf5 {[%clk 0:00:04]} 49. Bc4 {[%clk 0:00:13]}  Ke7 {[%clk 0:00:03]} 50. Be2 {[%clk 0:00:13]}  Kd6 {[%clk 0:00:03]} 51. Bh5 {[%clk 0:00:13]}  Kd5 {[%clk 0:00:02]} 52. Bg4 {[%clk 0:00:13]}  Bg6 {[%clk 0:00:01]} 53. Bc8 {[%clk 0:00:12]}  Kc4 {[%clk 0:00:01]} 54. Kg4 {[%clk 0:00:11]}  Bf7 {[%clk 0:00:02]} 55. Kxg5 {[%clk 0:00:10]}  Kd3 {[%clk 0:00:02]} 56. Kf4 {[%clk 0:00:10]}  Bd5 {[%clk 0:00:02]} 57. Bf5 {[%clk 0:00:09]}  Bb3 {[%clk 0:00:01]} 58. Bxe4+ {[%clk 0:00:09]}  Kd2 {[%clk 0:00:01]} 59. d5 {[%clk 0:00:09]}  Bxa4 {[%clk 0:00:02]} 60. d6 {[%clk 0:00:07]}  Bxb5 {[%clk 0:00:02]} 61. Bf5 {[%clk 0:00:07]}  Bc6 {[%clk 0:00:02]} 62. d7 {[%clk 0:00:07]}  Bxd7 {[%clk 0:00:02]} 63. Bxd7 {[%clk 0:00:08]}  a6 {[%clk 0:00:03]} 64. e4 {[%clk 0:00:08]}  b5 {[%clk 0:00:04]} 65. e5 {[%clk 0:00:07]}  b4 {[%clk 0:00:05]} 66. Ba4 {[%clk 0:00:06]}  b3 {[%clk 0:00:06]} 67. Bxb3 {[%clk 0:00:06]}  Kc3 {[%clk 0:00:07]} 68. Bg8 {[%clk 0:00:05]}  Kd4 {[%clk 0:00:07]} 69. e6 {[%clk 0:00:05]} 1-0


[Site "https://www.chess.com"]

[Event "Titled Tuesday Blitz November 22 Early 2022"]
[White "Hambleton, Aman"]
[Black "Goroshkov, Maksym"]
[WhiteFideId "2606577"]
[BlackFideId "14142716"]
[WhiteElo "2538"]
[BlackElo "2257"]
[Result "0-1"]
[Round "11"]
[TimeControl "180+1"]
[Date "2022.11.23"]
[WhiteClock "0:00:02"]
[BlackClock "0:02:02"]

1. d4 {[%clk 0:02:58]}  Nf6 {[%clk 0:02:59]} 2. Bf4 {[%clk 0:02:56]}  d6 {[%clk 0:02:59]} 3. e3 {[%clk 0:02:57]}  g6 {[%clk 0:03:00]} 4. h3 {[%clk 0:02:57]}  Bg7 {[%clk 0:03:00]} 5. Nf3 {[%clk 0:02:58]}  O-O {[%clk 0:03:01]} 6. Bh2 {[%clk 0:02:58]}  c5 {[%clk 0:03:01]} 7. dxc5 {[%clk 0:02:42]}  dxc5 {[%clk 0:03:02]} 8. Qxd8 {[%clk 0:02:43]}  Rxd8 {[%clk 0:03:02]} 9. Nc3 {[%clk 0:02:44]}  Nc6 {[%clk 0:03:02]} 10. Bb5 {[%clk 0:02:43]}  Nb4 {[%clk 0:03:00]} 11. Rc1 {[%clk 0:02:42]}  Bf5 {[%clk 0:02:59]} 12. Ba4 {[%clk 0:02:37]}  a6 {[%clk 0:02:59]} 13. g4 {[%clk 0:02:21]}  Be4 {[%clk 0:02:47]} 14. Nxe4 {[%clk 0:00:17]}  Nxe4 {[%clk 0:02:48]} 15. Rb1 {[%clk 0:00:06]}  b5 {[%clk 0:02:47]} 16. a3 {[%clk 0:00:06]}  Nc6 {[%clk 0:02:44]} 17. Bb3 {[%clk 0:00:07]}  c4 {[%clk 0:02:44]} 18. Ba2 {[%clk 0:00:07]}  Rd7 {[%clk 0:02:39]} 19. c3 {[%clk 0:00:02]}  Rad8 {[%clk 0:02:39]} 20. O-O {[%clk 0:00:02]}  Nd2 {[%clk 0:02:33]} 21. Nxd2 {[%clk 0:00:03]}  Rxd2 {[%clk 0:02:33]} 22. Rfe1 {[%clk 0:00:02]}  Ne5 {[%clk 0:02:29]} 23. Bxe5 {[%clk 0:00:03]}  Bxe5 {[%clk 0:02:30]} 24. Kf1 {[%clk 0:00:03]}  h5 {[%clk 0:02:28]} 25. Re2 {[%clk 0:00:03]}  hxg4 {[%clk 0:02:28]} 26. hxg4 {[%clk 0:00:03]}  Kg7 {[%clk 0:02:22]} 27. Ke1 {[%clk 0:00:02]}  R2d6 {[%clk 0:02:20]} 28. Kf1 {[%clk 0:00:01]}  g5 {[%clk 0:02:15]} 29. Rbe1 {[%clk 0:00:02]}  Rh6 {[%clk 0:02:14]} 30. Kg2 {[%clk 0:00:02]}  Rdh8 {[%clk 0:02:12]} 31. Rg1 {[%clk 0:00:02]}  Rh2+ {[%clk 0:02:12]} 32. Kf1 {[%clk 0:00:02]}  Rd8 {[%clk 0:02:12]} 33. Bb1 {[%clk 0:00:02]}  Rd1+ {[%clk 0:02:10]} 34. Re1 {[%clk 0:00:03]}  Rd2 {[%clk 0:02:11]} 35. Re2 {[%clk 0:00:04]}  Rd1+ {[%clk 0:02:11]} 36. Re1 {[%clk 0:00:04]}  Rd6 {[%clk 0:02:12]} 37. Rg2 {[%clk 0:00:04]}  Rh3 {[%clk 0:02:12]} 38. Ke2 {[%clk 0:00:04]}  a5 {[%clk 0:02:11]} 39. Be4 {[%clk 0:00:04]}  Rh8 {[%clk 0:02:11]} 40. Rd1 {[%clk 0:00:04]}  Rxd1 {[%clk 0:02:09]} 41. Kxd1 {[%clk 0:00:05]}  Rh1+ {[%clk 0:02:09]} 42. Kc2 {[%clk 0:00:04]}  f6 {[%clk 0:02:05]} 43. Bc6 {[%clk 0:00:03]}  b4 {[%clk 0:02:03]} 44. axb4 {[%clk 0:00:04]}  axb4 {[%clk 0:02:04]} 45. cxb4 {[%clk 0:00:05]}  Re1 {[%clk 0:02:03]} 46. Bf3 {[%clk 0:00:02]}  Ra1 {[%clk 0:02:02]} 0-1


[Site "https://www.chess.com"]

[Event "Titled Tuesday Blitz November 22 Early 2022"]
[White "Janaszak, Dawid"]
[Black "Rios Escobar, Adan"]
[WhiteFideId "1119206"]
[BlackFideId "3403645"]
[WhiteElo "2226"]
[BlackElo "2352"]
[Result "1-0"]
[Round "11"]
[TimeControl "180+1"]
[Date "2022.11.23"]
[WhiteClock "0:00:59"]
[BlackClock "0:00:16"]

1. f4 {[%clk 0:02:53]}  g6 {[%clk 0:02:56]} 2. e4 {[%clk 0:02:52]}  Bg7 {[%clk 0:02:54]} 3. Nc3 {[%clk 0:02:52]}  d6 {[%clk 0:02:50]} 4. Bc4 {[%clk 0:02:51]}  c5 {[%clk 0:02:50]} 5. Nf3 {[%clk 0:02:48]}  Nc6 {[%clk 0:02:49]} 6. O-O {[%clk 0:02:45]}  e6 {[%clk 0:02:34]} 7. d4 {[%clk 0:02:44]}  cxd4 {[%clk 0:02:32]} 8. Nb5 {[%clk 0:02:43]}  Nge7 {[%clk 0:02:21]} 9. Bb3 {[%clk 0:02:40]}  d3 {[%clk 0:02:15]} 10. Qxd3 {[%clk 0:02:35]}  d5 {[%clk 0:01:54]} 11. exd5 {[%clk 0:02:20]}  exd5 {[%clk 0:01:51]} 12. Bxd5 {[%clk 0:02:14]}  O-O {[%clk 0:01:39]} 13. Bxc6 {[%clk 0:02:11]}  Nxc6 {[%clk 0:01:35]} 14. Qxd8 {[%clk 0:02:07]}  Rxd8 {[%clk 0:01:36]} 15. c3 {[%clk 0:02:00]}  Be6 {[%clk 0:01:35]} 16. Nc7 {[%clk 0:01:59]}  Bc4 {[%clk 0:01:31]} 17. Nxa8 {[%clk 0:01:55]}  Bxf1 {[%clk 0:01:30]} 18. Kxf1 {[%clk 0:01:55]}  Rxa8 {[%clk 0:01:29]} 19. Be3 {[%clk 0:01:54]}  Re8 {[%clk 0:01:25]} 20. Kf2 {[%clk 0:01:52]}  b5 {[%clk 0:01:18]} 21. Rd1 {[%clk 0:01:48]}  b4 {[%clk 0:01:16]} 22. Rd6 {[%clk 0:01:48]}  Rc8 {[%clk 0:01:13]} 23. cxb4 {[%clk 0:01:41]}  Nxb4 {[%clk 0:01:12]} 24. a3 {[%clk 0:01:36]}  Nc6 {[%clk 0:01:12]} 25. b4 {[%clk 0:01:34]}  Bf8 {[%clk 0:01:05]} 26. Rd7 {[%clk 0:01:34]}  a5 {[%clk 0:00:47]} 27. b5 {[%clk 0:01:20]}  Nb8 {[%clk 0:00:47]} 28. Ra7 {[%clk 0:01:20]}  Bxa3 {[%clk 0:00:46]} 29. b6 {[%clk 0:01:15]}  Nc6 {[%clk 0:00:40]} 30. Ra6 {[%clk 0:01:15]}  Rb8 {[%clk 0:00:20]} 31. b7 {[%clk 0:01:02]}  Nd8 {[%clk 0:00:19]} 32. Ra8 {[%clk 0:01:02]}  Bd6 {[%clk 0:00:19]} 33. Ba7 {[%clk 0:01:00]}  Nc6 {[%clk 0:00:18]} 34. Bxb8 {[%clk 0:00:58]}  Bxb8 {[%clk 0:00:19]} 35. Ne5 {[%clk 0:00:58]}  Nxe5 {[%clk 0:00:16]} 36. fxe5 {[%clk 0:00:59]}  Kg7 {[%clk 0:00:13]} 37. Rxb8 {[%clk 0:00:59]}  h5 {[%clk 0:00:14]} 38. Ra8 {[%clk 0:00:59]}  h4 {[%clk 0:00:15]} 39. b8=Q {[%clk 0:01:00]}  g5 {[%clk 0:00:15]} 40. Qh8+ {[%clk 0:01:01]}  Kg6 {[%clk 0:00:15]} 41. Kf3 {[%clk 0:01:00]}  Kf5 {[%clk 0:00:16]} 42. Qf6# {[%clk 0:00:59]} 1-0


[Site "https://www.chess.com"]

[Event "Titled Tuesday Blitz November 22 Early 2022"]
[White "Kirillov, Dmitry"]
[Black "Levitan, Caleb Levi"]
[WhiteFideId "34180572"]
[BlackFideId "14332620"]
[WhiteElo "2095"]
[BlackElo "1963"]
[Result "1-0"]
[Round "11"]
[TimeControl "180+1"]
[Date "2022.11.23"]
[WhiteClock "0:00:20"]
[BlackClock "0:00:05"]

1. e4 {[%clk 0:03:00]}  e5 {[%clk 0:02:58]} 2. Nf3 {[%clk 0:03:00]}  Nc6 {[%clk 0:02:57]} 3. Bc4 {[%clk 0:03:00]}  Bc5 {[%clk 0:02:57]} 4. b4 {[%clk 0:03:00]}  Bxb4 {[%clk 0:02:56]} 5. c3 {[%clk 0:03:01]}  Be7 {[%clk 0:02:56]} 6. d4 {[%clk 0:02:51]}  Na5 {[%clk 0:02:53]} 7. Bxf7+ {[%clk 0:02:44]}  Kxf7 {[%clk 0:02:49]} 8. Nxe5+ {[%clk 0:02:44]}  Kf8 {[%clk 0:02:47]} 9. O-O {[%clk 0:02:35]}  d6 {[%clk 0:02:47]} 10. Qf3+ {[%clk 0:02:26]}  Nf6 {[%clk 0:02:44]} 11. Nd3 {[%clk 0:02:26]}  Bg4 {[%clk 0:02:06]} 12. Qe3 {[%clk 0:01:48]}  Nc4 {[%clk 0:01:56]} 13. Qe1 {[%clk 0:01:48]}  Kf7 {[%clk 0:01:41]} 14. f3 {[%clk 0:01:46]}  Bh5 {[%clk 0:01:35]} 15. f4 {[%clk 0:01:45]}  Re8 {[%clk 0:01:32]} 16. e5 {[%clk 0:01:44]}  Nd5 {[%clk 0:01:25]} 17. Qe4 {[%clk 0:01:18]}  dxe5 {[%clk 0:00:56]} 18. Qxh7 {[%clk 0:00:50]}  Bg6 {[%clk 0:00:53]} 19. Nxe5+ {[%clk 0:00:47]}  Nxe5 {[%clk 0:00:49]} 20. fxe5+ {[%clk 0:00:48]}  Bf6 {[%clk 0:00:45]} 21. Qh3 {[%clk 0:00:42]}  Kg8 {[%clk 0:00:20]} 22. exf6 {[%clk 0:00:42]}  Nxf6 {[%clk 0:00:21]} 23. Bg5 {[%clk 0:00:42]}  Rf8 {[%clk 0:00:19]} 24. Nd2 {[%clk 0:00:42]}  Qd6 {[%clk 0:00:16]} 25. Nc4 {[%clk 0:00:41]}  Qd5 {[%clk 0:00:11]} 26. Ne5 {[%clk 0:00:40]}  Be4 {[%clk 0:00:06]} 27. Bxf6 {[%clk 0:00:26]}  Rxf6 {[%clk 0:00:06]} 28. Rxf6 {[%clk 0:00:24]}  gxf6 {[%clk 0:00:07]} 29. Qg3+ {[%clk 0:00:24]}  Kf8 {[%clk 0:00:05]} 30. Rf1 {[%clk 0:00:20]} 1-0


[Site "https://www.chess.com"]

[Event "Titled Tuesday Blitz November 22 Early 2022"]
[White "Kiseljova, Marya"]
[Black "Vasques, Antonio Pedro Freixial"]
[WhiteFideId "4155009"]
[BlackFideId "1908332"]
[WhiteElo "1907"]
[BlackElo "2243"]
[Result "0-1"]
[Round "11"]
[TimeControl "180+1"]
[Date "2022.11.23"]
[WhiteClock "0:00:26"]
[BlackClock "0:00:25"]

1. d4 {[%clk 0:03:00]}  Nf6 {[%clk 0:00:16]} 2. c4 {[%clk 0:02:59]}  g6 {[%clk 0:00:17]} 3. Nc3 {[%clk 0:02:59]}  Bg7 {[%clk 0:00:18]} 4. e4 {[%clk 0:02:59]}  O-O {[%clk 0:00:19]} 5. Be2 {[%clk 0:02:58]}  d6 {[%clk 0:00:19]} 6. Bg5 {[%clk 0:02:57]}  e5 {[%clk 0:00:19]} 7. d5 {[%clk 0:02:56]}  c5 {[%clk 0:00:19]} 8. a4 {[%clk 0:02:54]}  Na6 {[%clk 0:00:20]} 9. Qd2 {[%clk 0:02:53]}  Qe8 {[%clk 0:00:20]} 10. f3 {[%clk 0:02:47]}  Kh8 {[%clk 0:00:20]} 11. g4 {[%clk 0:02:46]}  Ng8 {[%clk 0:00:20]} 12. Bh6 {[%clk 0:02:43]}  Bxh6 {[%clk 0:00:20]} 13. g5 {[%clk 0:02:42]}  Bg7 {[%clk 0:00:20]} 14. h4 {[%clk 0:02:43]}  f5 {[%clk 0:00:20]} 15. h5 {[%clk 0:02:42]}  gxh5 {[%clk 0:00:21]} 16. O-O-O {[%clk 0:02:37]}  Nb4 {[%clk 0:00:20]} 17. Kb1 {[%clk 0:02:37]}  f4 {[%clk 0:00:18]} 18. Nh3 {[%clk 0:02:35]}  Bxh3 {[%clk 0:00:18]} 19. Rxh3 {[%clk 0:02:35]}  h6 {[%clk 0:00:17]} 20. Rdh1 {[%clk 0:02:31]}  hxg5 {[%clk 0:00:15]} 21. Rxh5+ {[%clk 0:02:31]}  Nh6 {[%clk 0:00:15]} 22. Rxh6+ {[%clk 0:02:28]}  Bxh6 {[%clk 0:00:16]} 23. Rxh6+ {[%clk 0:02:28]}  Kg7 {[%clk 0:00:17]} 24. Rxd6 {[%clk 0:02:27]}  Rh8 {[%clk 0:00:17]} 25. Qe1 {[%clk 0:01:58]}  Qh5 {[%clk 0:00:16]} 26. Kc1 {[%clk 0:01:49]}  Qh1 {[%clk 0:00:16]} 27. Qxh1 {[%clk 0:01:46]}  Rxh1+ {[%clk 0:00:17]} 28. Kd2 {[%clk 0:01:46]}  Rf8 {[%clk 0:00:18]} 29. Re6 {[%clk 0:01:46]}  Rf7 {[%clk 0:00:18]} 30. Rxe5 {[%clk 0:01:46]}  g4 {[%clk 0:00:19]} 31. Rg5+ {[%clk 0:01:45]}  Kf6 {[%clk 0:00:19]} 32. Rxg4 {[%clk 0:01:45]}  b6 {[%clk 0:00:19]} 33. Rxf4+ {[%clk 0:01:45]}  Ke7 {[%clk 0:00:19]} 34. Rxf7+ {[%clk 0:01:41]}  Kxf7 {[%clk 0:00:20]} 35. Nb5 {[%clk 0:01:41]}  Rh2 {[%clk 0:00:20]} 36. Nxa7 {[%clk 0:01:30]}  Kf6 {[%clk 0:00:20]} 37. Nb5 {[%clk 0:01:26]}  Ke5 {[%clk 0:00:21]} 38. Nc3 {[%clk 0:01:17]}  Na6 {[%clk 0:00:19]} 39. Ke3 {[%clk 0:01:16]}  Nb4 {[%clk 0:00:20]} 40. f4+ {[%clk 0:01:16]}  Kf6 {[%clk 0:00:20]} 41. e5+ {[%clk 0:01:16]}  Kf5 {[%clk 0:00:21]} 42. d6 {[%clk 0:01:11]}  Rh3+ {[%clk 0:00:21]} 43. Bf3 {[%clk 0:01:07]}  Nc2+ {[%clk 0:00:21]} 44. Kf2 {[%clk 0:01:07]}  Nd4 {[%clk 0:00:22]} 45. Be4+ {[%clk 0:01:06]}  Kxf4 {[%clk 0:00:23]} 46. d7 {[%clk 0:01:03]}  Rh2+ {[%clk 0:00:23]} 47. Ke1 {[%clk 0:01:01]}  Rh8 {[%clk 0:00:24]} 48. e6 {[%clk 0:00:54]}  Nxe6 {[%clk 0:00:24]} 49. Bc6 {[%clk 0:00:49]}  Ke3 {[%clk 0:00:24]} 50. Nd5+ {[%clk 0:00:46]}  Kd3 {[%clk 0:00:24]} 51. Nxb6 {[%clk 0:00:45]}  Nd4 {[%clk 0:00:24]} 52. Bd5 {[%clk 0:00:40]}  Rf8 {[%clk 0:00:25]} 53. a5 {[%clk 0:00:31]}  Nc2+ {[%clk 0:00:24]} 54. Kd1 {[%clk 0:00:26]}  Rf1# {[%clk 0:00:25]} 0-1


[Site "https://www.chess.com"]